fUSD/lending_fUSD_20250407
["ID","MTS","AMOUNT","RATE_DAILY","PERIOD"]
[357393010,1744039848025,-397.08188837,0.0004869,30]
[357393011,1744039848034,-500.0,0.0004869,30]
[357393012,1744039848044,-502.95613348,0.0004869,30]
[357393013,1744039848058,-726.02,0.0004869,30]
[357393014,1744039848068,-500.0,0.0004869,30]
[357393015,1744039848078,-167.46710531,0.0004869,30]
[357393016,1744039848088,-531.8274778,0.0004869,30]
[357393017,1744039848098,-500.0,0.0004869,30]
[357393018,1744039848108,-500.0,0.0004869,30]
[357393019,1744039848117,-500.0,0.0004869,30]
[357393020,1744039848126,-500.0,0.0004869,30]
[357393021,1744039848136,-500.0,0.0004869,30]
[357393022,1744039848146,-500.0,0.0004869,30]
[357393023,1744039848362,-500.0,0.0004869,30]
[357393024,1744039848373,-500.0,0.0004869,30]
[357393025,1744039848384,-499.99709452,0.0004869,30]
[357393026,1744039848395,-504.51424776,0.0004869,30]
[357393027,1744039848407,-502.43040737,0.0004869,30]
[357393028,1744039848418,-502.95972806,0.0004869,30]
[357393029,1744039848429,-401.93432032,0.0004869,30]
[357393030,1744039848440,-500.0,0.0004869,30]
[357393031,1744039848451,-500.0,0.0004869,30]
[357393032,1744039848462,-502.38963506,0.0004869,30]
[357393033,1744039848472,-500.0,0.0004869,30]
[357393034,1744039848483,-504.48610428,0.0004869,30]
[357393035,1744039848493,-501.22804242,0.0004869,30]
[357393036,1744039848504,-500.0,0.0004869,30]
[357393037,1744039848515,-500.0,0.0004869,30]
[357393038,1744039848527,-500.0,0.0004869,30]
[357393039,1744039848540,-499.87660668,0.0004869,30]
[357393040,1744039848563,-500.0,0.0004869,30]
[357393041,1744039848576,-644.82521262,0.0004869,30]
[357393042,1744039848586,-500.0,0.0004869,30]
[357393043,1744039848597,-500.0,0.0004869,30]
[357393044,1744039848607,-500.0,0.0004869,30]
[357393045,1744039848618,-500.0,0.0004869,30]
[357393046,1744039848628,-500.0,0.0004869,30]
[357393047,1744039848639,-500.0,0.0004869,30]
[357393048,1744039848649,-631.55840801,0.0004869,30]
[357393049,1744039848660,-500.0,0.0004869,30]
[357393050,1744039848670,-500.0,0.0004869,30]
[357393051,1744039848680,-641.36,0.0004869,30]
[357393052,1744039848689,-500.0,0.0004869,30]
[357393053,1744039848699,-500.0,0.0004869,30]
[357393054,1744039848708,-500.0,0.0004869,30]
[357393055,1744039848718,-502.88739648,0.0004869,30]
[357393056,1744039848728,-500.0,0.0004869,30]
[357393057,1744039848738,-500.0,0.0004869,30]
[357393058,1744039848748,-500.0,0.0004869,30]
[357393059,1744039848757,-217.02953859,0.0004869,30]
[357393060,1744039848768,-609.67,0.0004869,30]
[357393061,1744039848778,-502.12257754,0.0004869,30]
[357393062,1744039848788,-500.0,0.0004869,30]
[357393063,1744039848803,-500.0,0.0004869,30]
[357393064,1744039848813,-500.0,0.0004869,30]
[357393065,1744039848823,-629.1683263,0.0004869,30]
[357393066,1744039848833,-500.0,0.0004869,30]
[357393067,1744039848843,-779.41,0.0004869,30]
[357393068,1744039848852,-500.0,0.0004869,30]
[357393069,1744039848863,-500.0,0.0004869,30]
[357393070,1744039848872,-548.4,0.0004869,30]
[357393071,1744039848883,-500.0,0.0004869,30]
[357393072,1744039848892,-583.13,0.0004869,30]
[357393073,1744039848902,-500.0,0.0004869,30]
[357393074,1744039848912,-500.0,0.0004869,30]
[357393075,1744039848921,-500.0,0.0004869,30]
[357393076,1744039848931,-525.66659224,0.0004869,30]
[357393077,1744039848940,-715.46,0.0004869,30]
[357393078,1744039848950,-514.82550696,0.0004869,30]
[357393079,1744039848960,-500.0,0.0004869,30]
[357393080,1744039848969,-588.97,0.0004869,30]
[357393081,1744039848979,-500.0,0.0004869,30]
[357393082,1744039848988,-502.86138317,0.0004869,30]
[357393083,1744039848997,-501.98395627,0.0004869,30]
[357393084,1744039849007,-500.0,0.0004869,30]
[357393085,1744039849016,-500.0,0.0004869,30]
[357393086,1744039849026,-500.0,0.0004869,30]
[357393087,1744039849035,-1011.43817714,0.0004869,30]
[357393088,1744039849045,-800.98,0.0004869,30]
[357393089,1744039849058,-772.77,0.0004869,30]
[357393090,1744039849068,-529.36196989,0.0004869,30]
[357393091,1744039849078,-556.31020591,0.0004869,30]
[357393092,1744039849087,-500.0,0.0004869,30]
[357393093,1744039849097,-506.29274565,0.0004869,30]
[357393094,1744039849106,-611.31,0.0004869,30]
[357393095,1744039849115,-500.0,0.0004869,30]
[357393096,1744039849125,-510.35891011,0.0004869,30]
[357393097,1744039849135,-727.46,0.0004869,30]
[357393098,1744039849146,-511.29315973,0.0004869,2]
[357393099,1744039849157,-940.83,0.0004869,30]
[357393100,1744039849167,-2496.67,0.0004869,30]
[357393101,1744039849176,-151.0,0.0004869,14]
[357393102,1744039849185,-500.0,0.0004869,30]
[357393103,1744039849194,-943.95,0.0004869,30]
[357393104,1744039849205,-961.96,0.0004869,30]
[357393105,1744039849216,-500.0,0.0004869,30]
[357393106,1744039849229,-500.0,0.0004869,30]
[357393107,1744039849240,-500.0,0.0004869,30]
[357393108,1744039849250,-500.0,0.0004869,30]
[357393109,1744039849262,-500.0,0.0004869,30]
[357393110,1744039849272,-500.0,0.0004869,30]
[357393111,1744039849282,-918.31,0.0004869,30]
[357393112,1744039849292,-561.86349537,0.0004869,30]
[357393113,1744039849308,-2140.6,0.0004869,30]
[357393114,1744039849317,-500.0,0.0004869,30]
[357393115,1744039849327,-500.0,0.0004869,30]
[357393116,1744039849337,-151.0,0.0004869,14]
[357393117,1744039849347,-818.64,0.0004869,30]
[357393118,1744039849357,-437.54707969,0.0004869,30]
[357393119,1744039849367,-528.51131798,0.0004869,30]
[357393120,1744039849378,-681.31,0.0004869,30]
[357393121,1744039849388,-1679.73,0.0004869,30]
[357393122,1744039849397,-1394.82,0.0004869,30]
[357393123,1744039849407,-690.85,0.0004869,30]
[357393124,1744039849417,-546.09,0.0004869,30]
[357393125,1744039849426,-500.0,0.0004869,30]
[357393126,1744039849436,-725.68,0.0004869,30]
[357393127,1744039849446,-632.43,0.0004869,30]
[357393128,1744039849455,-500.0,0.0004869,8]
[357393129,1744039849465,-1275.39,0.0004869,30]
[357393130,1744039849475,-501.98829718,0.0004869,30]
[357393131,1744039849485,-586.2421258,0.0004869,30]
[357393132,1744039849495,-1159.6,0.0004869,30]
[357393133,1744039849505,-500.0,0.0004869,30]
[357393134,1744039849515,-500.0,0.0004869,30]
[357393135,1744039849525,-942.88,0.0004869,30]
[357393136,1744039849535,-1297.42,0.0004869,30]
[357393137,1744039849546,-498.99894362,0.0004869,30]
[357393138,1744039849562,-500.0,0.0004869,30]
[357393139,1744039849572,-500.0,0.0004869,30]
[357393140,1744039849583,-500.0,0.0004869,2]
[357393141,1744039849594,-6190.236748,0.0004869,14]
[357393142,1744039849604,-6190.236748,0.0004869,14]
[357393143,1744039849614,-500.0,0.0004869,30]
[357393144,1744039849625,-731.04,0.0004869,30]
[357393145,1744039849634,-1588.38,0.0004869,30]
[357393146,1744039849644,-1520.882429,0.0004869,14]
[357393147,1744039849655,-284.31074431,0.0004869,7]
[357393148,1744039849665,-1520.882429,0.0004869,14]
[357393149,1744039849676,-506.54,0.00048691,30]
[357393150,1744039849687,-500.0,0.00048691,30]
[357393151,1744039849698,-500.0,0.00048691,30]
[357393152,1744039849710,-500.0,0.00048691,30]
[357393153,1744039849721,-1991.71,0.00048691,30]
[357393154,1744039849732,-1910.31,0.00048691,30]
[357393155,1744039849741,-951.72,0.00048691,30]
[357393156,1744039849751,-500.0,0.00048691,30]
[357393157,1744039849762,-500.0,0.00048691,30]
[357393158,1744039849772,-500.0,0.00048691,30]
[357393159,1744039849781,-500.0,0.00048691,30]
[357393160,1744039849791,-500.0,0.00048691,30]
[357393161,1744039849806,-683.77,0.00048691,30]
[357393162,1744039849816,-500.0,0.00048691,30]
[357393163,1744039849826,-1164.89,0.00048691,30]
[357393164,1744039849837,-500.0,0.00048691,30]
[357393165,1744039849847,-500.0,0.00048691,30]
[357393166,1744039849857,-800.11,0.00048691,30]
[357393167,1744039849867,-509.67970619,0.00048691,30]
[357393168,1744039849876,-1058.81,0.00048691,30]
[357393169,1744039849887,-688.96,0.00048691,30]
[357393170,1744039849896,-500.0,0.00048691,30]
[357393171,1744039849906,-916.81345423,0.00048691,30]
[357393172,1744039850456,-30.61654577,0.00048691,30]
[357393173,1744039850467,-500.0,0.00048691,30]
[357393174,1744039850476,-780.69001504,0.00048691,30]
[357393175,1744039851999,-1327.45,0.00048493,30]
[357393176,1744039852009,-155.08998496,0.00048691,30]
[357393177,1744039852018,-500.0,0.00048691,30]
[357393178,1744039852028,-871.37,0.00048691,30]
[357393179,1744039852037,-500.0,0.00048691,30]
[357393180,1744039852046,-500.0,0.00048691,30]
[357393181,1744039852058,-500.0,0.00048691,30]
[357393182,1744039852067,-793.01,0.00048691,30]
[357393183,1744039852076,-762.08036581,0.00048691,30]
[357393184,1744039852103,-25.05963419,0.00048691,30]
[357393185,1744039852113,-500.0,0.00048691,30]
[357393186,1744039852122,-247.40919087,0.00048691,30]
[357393187,1744039852795,-252.59080913,0.00048691,30]
[357393188,1744039852807,-500.0,0.00048691,30]
[357393189,1744039852817,-500.0,0.00048691,30]
[357393190,1744039852827,-734.4,0.00048691,30]
[357393191,1744039852837,-550.01,0.00048691,30]
[357393192,1744039852847,-509.06,0.00048691,30]
[357393193,1744039852857,-500.0,0.00048691,30]
[357393194,1744039852866,-366.39849087,0.00048691,30]
[357393195,1744039852951,-133.60150913,0.00048691,30]
[357393196,1744039852961,-500.0,0.00048691,30]
[357393197,1744039852972,-516.32,0.00048691,30]
[357393198,1744039852981,-500.0,0.00048691,30]
[357393199,1744039852991,-500.0,0.00048691,30]
[357393200,1744039853000,-500.0,0.00048691,30]
[357393201,1744039853010,-500.0,0.00048691,30]
[357393202,1744039853025,-500.0,0.00048691,30]
[357393203,1744039853035,-506.79,0.00048691,30]
[357393204,1744039853044,-151.0,0.00048691,14]
[357393205,1744039853057,-500.0,0.00048691,30]
[357393206,1744039853067,-679.86,0.00048691,30]
[357393207,1744039853077,-768.67616487,0.00048691,30]
[357393208,1744039853091,-1528.94383513,0.00048691,30]
[357393209,1744039853100,-500.0,0.00048691,30]
[357393210,1744039853110,-1805.97,0.00048691,30]
[357393211,1744039853120,-500.0,0.00048691,30]
[357393212,1744039853130,-1000.0,0.00048691,30]
[357393213,1744039853139,-151.0,0.00048691,14]
[357393214,1744039853151,-500.0,0.00048691,30]
[357393215,1744039853161,-500.0,0.00048691,30]
[357393216,1744039853171,-151.0,0.00048691,14]
[357393217,1744039853181,-527.71,0.00048691,30]
[357393218,1744039853191,-151.422638,0.00048691,14]
[357393219,1744039853201,-500.0,0.00048691,30]
[357393220,1744039853211,-609.99,0.00048691,30]
[357393221,1744039853220,-521.04,0.00048691,30]
[357393222,1744039853232,-151.0,0.00048691,14]
[357393223,1744039853243,-151.0,0.00048691,14]
[357393224,1744039853252,-151.0,0.00048691,14]
[357393225,1744039853263,-8958.06447095,0.00048691,30]
[357393226,1744039853402,-1449.43608725,0.00048691,30]
[357393227,1744039884477,246.58898783,0.00019999,2]
[357393229,1744040175678,293.7,0.00042792,30]
[357393230,1744040515347,250.0,0.00019,2]
[357393231,1744040657534,641.36,0.00042788,30]
[357393232,1744040740666,-211.67219258,0.000209,2]
[357393233,1744040740690,-300.0,0.00021,2]
[357393234,1744040740721,-654.24772817,0.00021,7]
[357393235,1744040814651,-274.97791914,0.00021,7]
[357393236,1744040828078,-4028.5833392,0.00021,7]
[357393237,1744040832093,-68.12855537,0.00021,7]
[357393238,1744040832115,-222.80642644,0.00021,2]
[357393239,1744040832137,-350.0,0.00023,2]
[357393240,1744040832161,-400.0,0.00025,2]
[357393241,1744040832184,-169.00203654,0.000268,2]
[357393242,1744040832207,-163.1,0.00026849,2]
[357393243,1744040832229,-150.0,0.00026877,2]
[357393244,1744040832251,-450.0,0.00027,2]
[357393245,1744040832275,-250.0,0.00028071,2]
[357393246,1744040832297,-150.99,0.00028071,2]
[357393247,1744040832320,-500.0,0.00029,2]
[357393248,1744040832342,-299.99,0.00029,12]
[357393249,1744040832364,-289.99,0.00029,2]
[357393250,1744040832385,-150.99,0.00029,2]
[357393251,1744040832407,-125.1138445,0.00029,2]
[357393252,1744040842131,-874.8761555,0.00029,2]
[357393253,1744040842153,-1676.62543815,0.00029,2]
[357393255,1744040953126,-161.3412318,0.00029,2]
[357393256,1744040955118,-1000.82169229,0.00029,2]
[357393257,1744040963352,-1029.88507081,0.00029,2]
[357393258,1744040964122,-6131.31656695,0.00029,2]
[357393259,1744040964145,-11779.33326848,0.00029513,2]
[357393260,1744040966128,-898.29819451,0.00029513,2]
[357393264,1744041032535,-1000.0,0.00029,2]
[357393265,1744041032546,-217.70214511,0.00029413,2]
[357393266,1744041032556,-1368.02358232,0.00029513,2]
[357393268,1744041032735,-1952.72595287,0.00029513,2]
[357393269,1744041032875,-349.66852,0.00029513,2]
[357393270,1744041033054,-2354.8,0.00029513,2]
[357393273,1744041033065,-3011.11772661,0.00029513,2]
[357393294,1744041038254,150.0,0.00027,120]
[357393298,1744041038524,-313.00334573,0.00029513,2]
[357393301,1744041038642,150.0,0.000323,120]
[357393302,1744041038719,-2254.44310714,0.00029513,2]
[357393478,1744041040975,-1966.96456641,0.00029513,2]
[357393480,1744041040988,-102850.48840253,0.00029513,2]
[357393482,1744041040999,-18922.4761227,0.00029514,2]
[357393484,1744041041010,-250.0,0.00029534,2]
[357393486,1744041041020,-250.0,0.00029891,2]
[357393487,1744041041030,-1001.61519404,0.0003,2]
[357393489,1744041041040,-786.71,0.00030445,2]
[357393491,1744041041051,-550.0,0.00031,2]
[357393493,1744041041061,-1000.0,0.00031,2]
[357393495,1744041041071,-200.0,0.00031,2]
[357393497,1744041041081,-1000.0,0.00032,2]
[357393499,1744041041091,-1000.0,0.00033,2]
[357393501,1744041041101,-1000.0,0.00034,2]
[357393503,1744041041111,-19831.26,0.00034548,2]
[357393505,1744041041121,-745.66,0.00034548,2]
[357393507,1744041041131,-150.0,0.00034548,10]
[357393509,1744041041140,-168.1,0.00035,2]
[357393511,1744041041150,-1000.0,0.00035,2]
[357393513,1744041041160,-200.0,0.000351,2]
[357393515,1744041041172,-151.0,0.0003511,7]
[357393517,1744041041185,-151.0,0.0003511,7]
[357393519,1744041041195,-151.0,0.0003511,7]
[357393521,1744041041205,-3345.95,0.0003511,41]
[357393523,1744041041215,-159.072,0.0003511,41]
[357393525,1744041041225,-1000.0,0.00036,2]
[357393527,1744041041235,-1000.0,0.00037,2]
[357393529,1744041041245,-174.13035112,0.000372,103]
[357393531,1744041041254,-150.0,0.000376,120]
[357393532,1744041041264,-1000.0,0.00038,2]
[357393534,1744041041274,-789.0,0.00038999,4]
[357393537,1744041041285,-1000.0,0.00039,2]
[357393539,1744041041295,-1000.0,0.0004,2]
[357393540,1744041041305,-1155.04,0.00040291,2]
[357393542,1744041041315,-16440.0,0.00040578,2]
[357393544,1744041041325,-250.94210447,0.000406,2]
[357393546,1744041041334,-250.0,0.00040847,2]
[357393548,1744041041344,-1000.0,0.00041,2]
[357393550,1744041041354,-165.0,0.00041,14]
[357393552,1744041041365,-250.0,0.00041066,120]
[357393555,1744041041375,-273.44184589,0.00041446,30]
[357393556,1744041041385,-266.73,0.00041795,2]
[357393558,1744041041395,-22047.62823667,0.00041941,2]
[357393561,1744041041407,-1852.37176333,0.00041941,2]
[357393563,1744041041417,-150.0,0.00041952,2]
[357393565,1744041041430,-1336.83,0.00042,120]
[357393567,1744041041440,-830.02,0.00042,120]
[357393569,1744041041450,-1000.0,0.00042,2]
[357393572,1744041041460,-151.8,0.00042013,2]
[357393575,1744041041470,-1000.0,0.00042028,2]
[357393577,1744041041479,-1039.0,0.000422,2]
[357393579,1744041041489,-1155.04,0.00042555,2]
[357393581,1744041041498,-163.1,0.00042583,2]
[357393583,1744041041508,-180.0,0.000427,30]
[357393585,1744041041518,-2000.0,0.0004278,30]
[357393586,1744041041529,-2000.0,0.0004278,30]
[357393588,1744041041539,-299.535,0.00042788,30]
[357393590,1744041041549,-185.18739871,0.00042792,2]
[357393592,1744041041558,-244.40523,0.000429,120]
[357393594,1744041041568,-2000.0,0.00042908,120]
[357393596,1744041041579,-1000.0,0.00043,2]
[357393598,1744041041588,-216.18,0.00043244,120]
[357393600,1744041041598,-151.0,0.00043278,2]
[357393602,1744041041610,-200.0,0.00043278,2]
[357393604,1744041041621,-5925.53060796,0.00043304,2]
[357393799,1744041043629,-30.55310216,0.000427,100]
[357393847,1744041044087,-661.38821439,0.000427,100]
[357393849,1744041044097,-23269.62010036,0.00043304,2]
[357393851,1744041044106,-263.75,0.00043344,2]
[357393853,1744041044115,-1766.84,0.00043464,2]
[357393855,1744041044125,-1852.42,0.00043466,2]
[357393859,1744041044135,-1000.0,0.00043483,120]
[357393860,1744041044144,-200.0,0.00043571,2]
[357393862,1744041044153,-175.73,0.0004359,120]
[357393864,1744041044163,-745.93,0.00043677,2]
[357393866,1744041044172,-1000.0,0.00043788,4]
[357393868,1744041044183,-1000.0,0.00043788,4]
[357393870,1744041044193,-812.4372,0.00043888,7]
[357393872,1744041044202,-1000.0,0.00044,2]
[357393874,1744041044212,-200.0,0.00044539,7]
[357393876,1744041044221,-156.587,0.00044647,2]
[357393878,1744041044230,-207.4,0.00044647,2]
[357393880,1744041044239,-167.08,0.0004468,2]
[357393882,1744041044248,-1155.04,0.00044819,2]
[357393884,1744041044257,-8569.21,0.00044913,2]
[357393886,1744041044267,-1000.0,0.00045,2]
[357393888,1744041044276,-500.0,0.00045,120]
[357393890,1744041044285,-2000.0,0.00045,30]
[357393892,1744041044294,-151.0,0.0004549,14]
[357393894,1744041044303,-151.0,0.0004549,14]
[357393896,1744041044312,-151.0,0.0004549,14]
[357393898,1744041044321,-150.0,0.00045589,10]
[357393900,1744041044330,-323.61,0.00045688,2]
[357393902,1744041044340,-323.61,0.000457,2]
[357393903,1744041044349,-323.61,0.00045712,2]
[357393904,1744041044358,-323.61,0.00045724,2]
[357393905,1744041044367,-323.61,0.00045736,2]
[357393906,1744041044376,-323.61,0.00045748,2]
[357393907,1744041044385,-323.61,0.0004576,2]
[357393908,1744041044394,-323.61,0.00045772,2]
[357393909,1744041044404,-323.61,0.00045784,2]
[357393910,1744041044413,-323.61,0.00045796,2]
[357393911,1744041044422,-323.61,0.00045808,2]
[357393912,1744041044433,-323.61,0.0004582,2]
[357393913,1744041044442,-323.61,0.00045833,2]
[357393914,1744041044451,-323.61,0.00045845,2]
[357393915,1744041044460,-323.61,0.00045857,2]
[357393916,1744041044469,-323.61,0.00045869,2]
[357393918,1744041044479,-323.61,0.00045881,2]
[357393919,1744041044488,-323.61,0.00045893,2]
[357393921,1744041044497,-323.61,0.00045905,2]
[357393923,1744041044506,-1132.59142742,0.00045912,10]
[357393925,1744041044516,-323.61,0.00045917,2]
[357393927,1744041044527,-1000.0,0.00046,2]
[357393929,1744041044538,-162.380719,0.00046016,2]
[357393931,1744041044547,-215.0738,0.00046016,2]
[357393933,1744041044558,-3325.14587329,0.00046475,15]
[357393935,1744041044568,-1255.92796742,0.00046475,18]
[357393937,1744041044578,-172.2035395,0.00046475,24]
[357393938,1744041044587,-172.90796842,0.00046564,31]
[357393941,1744041044597,-500.0,0.00046564,120]
[357393942,1744041044608,-500.0,0.00046564,120]
[357393945,1744041044619,-500.0,0.00046564,120]
[357393947,1744041044629,-500.0,0.00046564,120]
[357393948,1744041044639,-526.8988224,0.00046564,120]
[357393950,1744041044648,-28959.40709972,0.00046565,3]
[357394133,1744041046726,-3120.39999999,0.00046565,3]
[357394135,1744041046738,-1867.30005,0.00046565,3]
[357394153,1744041046953,-3.48187555,0.00046565,3]
[357394902,1744041217486,150.0,0.00042788,30]
[357394904,1744041325984,158.02,0.00013699,2]
[357394906,1744041797207,496.32446825,0.00042789,120]
[357394907,1744041801048,209.30863245,0.00042789,120]
[357394909,1744042012377,413.08,0.00042789,30]
[357394910,1744042029111,-339.86,0.00026849,2]
[357394911,1744042029133,-2224.98113154,0.00027297,2]
[357394912,1744042029155,-1544.85738003,0.00027318,2]
[357394913,1744042030144,-2409.71799686,0.00027318,2]
[357394914,1744042030168,-158.02,0.00027397,2]
[357394915,1744042030193,-138.49595264,0.00029534,12]
[357394916,1744042044137,-211.50404736,0.00029534,12]
[357394917,1744042044159,-250.0,0.00032463,2]
[357394918,1744042044182,-339.86,0.00032646,2]
[357394919,1744042044203,-1056.67959,0.0003499,2]
[357394920,1744042044226,-400.0,0.00035166,2]
[357394921,1744042044249,-12308.39905504,0.00035167,2]
[357394922,1744042044270,-7248.1176911,0.00035167,2]
[357394929,1744042148100,-150.0,0.0003244,2]
[357394930,1744042148122,-7916.969078,0.00032441,2]
[357394931,1744042157133,-4397.144654,0.00032441,2]
[357394932,1744042162115,-1251.53808956,0.00032441,2]
[357394933,1744042164116,-18909.96632,0.00032441,2]
[357394934,1744042166126,-1055.75322638,0.00032441,2]
[357394936,1744042171083,-20623.18326301,0.00032441,2]
[357394946,1744042231625,-400.0,0.0003244,2]
[357394948,1744042231639,-27098.52930834,0.00032441,2]
[357394954,1744042231797,-939.489561,0.00032441,2]
[357394955,1744042231810,-1050.0,0.00032441,2]
[357394956,1744042231821,-1577.36276331,0.00032441,2]
[357394957,1744042232001,-3154.94178727,0.00032441,2]
[357394958,1744042232013,-27141.00194913,0.00032441,2]
[357394959,1744042232023,-560.0,0.00034875,2]
[357394960,1744042232032,-247.19243998,0.00035067,2]
[357394961,1744042232042,-2383.2123089,0.00035167,2]
[357394962,1744042232051,-150.99,0.00035167,30]
[357394963,1744042232062,-41002.8458196,0.0003539,2]
[357394964,1744042232071,-250.0,0.00035414,2]
[357394965,1744042232081,-1551.32,0.00035414,2]
[357394966,1744042232090,-150.99,0.00035414,2]
[357394967,1744042232100,-1504.75,0.00035414,2]
[357394968,1744042232110,-500.0,0.00035967,5]
[357394970,1744042232119,-263.152689,0.00035967,5]
[357394972,1744042232129,-500.0,0.00035967,2]
[357394974,1744042232140,-438.5383776,0.000372,103]
[357394976,1744042232150,-438.53837759,0.000372,103]
[357394978,1744042232160,-783.0,0.00037493,2]
[357394980,1744042232169,-159.61,0.00037699,2]
[357394982,1744042232179,-438.53837759,0.00037959,108]
[357394984,1744042232189,-311.0,0.00037959,2]
[357394986,1744042232198,-209.30863245,0.00038,120]
[357394988,1744042232208,-339.86,0.00038443,2]
[357394990,1744042232217,-209.30863245,0.0004,120]
[357394992,1744042232227,-72701.58502243,0.0004,2]
[357394994,1744042232236,-265.0,0.00040308,5]
[357394996,1744042232246,-3749.058,0.00040415,58]
[357394998,1744042232255,-166.385,0.00040415,58]
[357395000,1744042232265,-1370.42,0.00040894,2]
[357395002,1744042232275,-165.0,0.00041,14]
[357395005,1744042232285,-158.02,0.00041096,2]
[357395008,1744042232295,-200.0,0.00041097,2]
[357395010,1744042232304,-300.0,0.00041125,2]
[357395013,1744042232314,-185.99,0.00041126,2]
[357395016,1744042232324,-1000.0,0.000415,40]
[357395018,1744042232334,-1000.0,0.0004179,25]
[357395021,1744042232344,-1000.0,0.0004187,25]
[357395024,1744042232354,-1000.0,0.000419,25]
[357395027,1744042232364,-2714.4226966,0.00041938,2]
[357395029,1744042232374,-1000.0,0.0004195,40]
[357395032,1744042232385,-663.55,0.00042159,2]
[357395035,1744042232395,-1000.0,0.0004218,45]
[357395038,1744042232405,-151.8,0.000424,2]
[357395040,1744042232415,-6012.77,0.00042571,2]
[357395042,1744042232426,-150.29067348,0.00042575,6]
[357395044,1744042232436,-1500.0,0.00042584,120]
[357395046,1744042232447,-250.0,0.00042601,2]
[357395048,1744042232457,-200.0,0.00042613,7]
[357395051,1744042232467,-1921.64,0.00042613,2]
[357395054,1744042232476,-175.73,0.00042613,120]
[357395057,1744042232486,-159.63,0.00042772,2]
[357395060,1744042232495,-3707.79632084,0.00042804,15]
[357395063,1744042232505,-2000.0,0.00042811,120]
[357395066,1744042232515,-250.59001464,0.00042865,2]
[357395069,1744042232526,-1000.0,0.00042903,2]
[357395072,1744042232535,-437.15,0.00042903,2]
[357395075,1744042232544,-150.0,0.00042903,2]
[357395078,1744042232554,-222.31,0.00042927,120]
[357395081,1744042232564,-1324.73,0.00042955,2]
[357395084,1744042232573,-212.972804,0.0004296,2]
[357395108,1744042237745,-10.497196,0.0004296,2]
[357395109,1744042237755,-1382.18944358,0.00042972,2]
[357395110,1744042237767,-1900.86494225,0.00042972,2]
[357395111,1744042237779,-500.0,0.00042972,2]
[357395112,1744042237790,-1782.044,0.00042972,2]
[357395113,1744042237878,-18334.90161417,0.00042972,2]
[357395114,1744042237889,-418.61726491,0.00043,120]
[357395115,1744042237899,-165.0,0.00043151,90]
[357395116,1744042237912,-1370.42,0.00043158,2]
[357395117,1744042237921,-438.53837759,0.0004333,120]
[357395118,1744042237931,-3707.79632079,0.00043364,15]
[357395119,1744042237940,-1000.0,0.000437,40]
[357395120,1744042237951,-642.49574491,0.00043845,62]
[357395121,1744042237960,-243.73116,0.00043888,30]
[357395122,1744042237971,-10165.47778145,0.000439,14]
[357395123,1744042237980,-1000.0,0.000439,40]
[357395124,1744042237990,-15840.7602998,0.000439,2]
[357395125,1744042238000,-3707.79632079,0.00043924,15]
[357395126,1744042238010,-166.66,0.00043945,2]
[357395127,1744042238019,-243.73116,0.00044088,30]
[357395128,1744042238030,-1986.93,0.00044109,2]
[357395129,1744042238040,-947.82352544,0.00044226,30]
[357395130,1744042238050,-339.86,0.00044239,2]